bitfinex-derivatives/quotes_ETHF0:USTF0_20240817
["timestamp","ask_amount","ask_price","bid_price","bid_amount"]
[1723861907280,1.92166,2601.1,2601.0,2.11356507]
[1723861907580,2.29826,2601.1,2601.0,1.107]
[1723861907881,1.92173,2601.0,2600.9,1.107]
[1723861908182,1.92173,2601.0,2600.9,1.11130879]
[1723861915284,5.76653,2601.0,2600.9,1.11130879]
[1723861916083,3.8448,2601.0,2600.9,1.11130879]
[1723861916387,5.12944,2601.2,2600.9,3.03305879]
[1723861916585,5.12944,2601.2,2601.0,1.4761]
[1723861916886,5.12944,2601.2,2601.0,1.8539]
[1723861917186,3.2078,2601.2,2601.0,3.77562]
[1723861917386,3.2078,2601.2,2601.1,0.3573]
[1723861917590,3.2078,2601.2,2601.1,2.27896]
[1723861918083,3.2078,2601.2,2601.1,0.3573]
[1723861918791,5.12938,2601.2,2601.1,0.3573]
[1723861919901,1.92158,2601.2,2601.1,0.3573]
[1723861920487,3.8448,2601.2,2600.9,1.11130879]
[1723861920683,3.2078,2601.3,2601.0,0.7159]
[1723861920986,1.92163,2601.2,2601.0,0.7159]
[1723861921386,3.2078,2601.3,2600.9,0.00430879]
[1723861921387,1.92173,2601.0,2600.9,0.00430879]
[1723861921586,6.23653,2601.0,2600.9,0.00430879]
[1723861921783,11.13933,2601.0,2600.9,0.00430879]
[1723861921994,13.06106,2601.0,2600.9,0.00430879]
[1723861923290,11.95406,2601.0,2600.9,0.00430879]
[1723861923885,8.74626,2601.0,2600.9,0.00430879]
[1723861924086,11.95406,2601.0,2600.9,0.00430879]
[1723861924783,8.74626,2601.0,2600.9,0.00430879]
[1723861925192,11.95406,2601.0,2600.9,0.00430879]
[1723861928689,18.06106,2601.0,2600.9,0.00430879]
[1723861931095,13.06106,2601.0,2600.9,0.00430879]
[1723861932188,10.03233,2601.0,2600.9,0.00430879]
[1723861932404,10.03233,2601.0,2600.9,1.11130879]
[1723861932405,5.12953,2601.0,2600.9,1.11130879]
[1723861932595,3.2078,2601.0,2600.9,1.11130879]
[1723861932797,5.12953,2601.0,2600.9,1.11130879]
[1723861933591,3.2078,2601.0,2600.9,3.03310879]
[1723861933797,1.92159,2601.2,2600.9,1.11130879]
[1723861933998,5.12935,2601.3,2601.1,1.107]
[1723861934197,5.12935,2601.3,2601.2,0.35]
[1723861934411,4.113,2601.5,2601.4,1.92143]
[1723861934706,3.2078,2601.8,2601.5,1.92134]
[1723861934913,1.92122,2601.7,2601.6,1.4526]
[1723861935106,1.92122,2601.7,2601.6,1.7986]
[1723861935501,3.2078,2601.8,2601.6,1.7986]
[1723861935698,3.2078,2601.8,2601.7,1.107]
[1723861935897,3.2078,2601.8,2601.6,0.6916]
[1723861936095,5.12896,2601.8,2601.6,0.6916]
[1723861936707,3.2078,2601.8,2601.6,2.61287]
[1723861937004,5.12897,2601.8,2601.6,0.6916]
[1723861938301,3.2078,2601.8,2601.6,0.6916]
[1723861938606,3.2078,2601.8,2601.6,2.61288]
[1723861938805,5.12896,2601.8,2601.6,0.6916]
[1723861939005,5.47996,2601.8,2601.6,0.6916]
[1723861939308,1.92121,2601.7,2601.6,0.6916]
[1723861939512,1.92143,2601.4,2601.3,0.3708]
[1723861939698,1.9214,2601.5,2601.3,0.3708]
[1723861940096,1.92143,2601.4,2601.3,0.3708]
[1723861940403,1.92166,2601.1,2600.9,0.00430879]
[1723861940601,0.351,2601.4,2600.9,0.37460879]
[1723861940802,0.351,2601.4,2600.9,0.74140879]
[1723861941401,1.92168,2601.1,2600.9,0.74140879]
[1723861942709,1.92164,2601.2,2600.9,2.66320879]
[1723861943007,1.92155,2601.3,2601.0,1.92173]
[1723861943199,1.92157,2601.3,2601.0,1.92166]
[1723861944200,5.1292,2601.5,2601.2,1.92157]
[1723861944402,0.3639,2601.6,2601.3,0.3552]
[1723861944611,1.92137,2601.5,2601.3,0.3552]
[1723861945103,0.3639,2601.6,2601.3,2.2767]
[1723861945304,0.3639,2601.6,2601.3,2.27665]
[1723861945504,1.92124,2601.7,2601.4,2.2922]
[1723861945810,5.12895,2601.8,2601.5,2.26463]
[1723861946010,3.2078,2601.8,2601.5,0.3433]
[1723861946307,1.92129,2601.6,2601.5,0.3433]
[1723861949517,5.12905,2601.7,2601.5,0.3433]
[1723861950909,3.5717,2602.0,2601.5,0.3433]
[1723861951118,3.5717,2602.0,2601.7,1.92115]
[1723861951413,5.49274,2602.0,2601.7,1.92115]
[1723861951711,5.49274,2602.0,2601.8,0.3428]
[1723861952008,1.92106,2601.9,2601.8,0.3428]
[1723861958509,5.12886,2601.9,2601.8,0.3428]
[1723861958714,3.2078,2601.9,2601.8,0.3428]
[1723861960211,3.2078,2601.9,2601.8,2.26394]
[1723861961411,3.2078,2601.9,2601.8,0.3428]
[1723861962512,3.5752,2601.9,2601.8,0.3428]
[1723861963011,0.3674,2601.9,2601.8,0.3428]
[1723861964019,3.2078,2602.0,2601.9,1.92106]
[1723861964320,0.00017566,2602.1,2601.9,7.23526]
[1723861964517,0.00017566,2602.1,2602.0,0.3627]
[1723861973728,1.92109566,2602.1,2602.0,0.3627]
[1723861975327,0.00017566,2602.1,2601.8,0.3428]
[1723861975530,0.3596,2602.0,2601.8,0.3428]
[1723861975728,1.92106,2601.9,2601.8,0.3428]
[1723861976134,1.92106,2601.9,2601.8,4.186]
[1723861976537,1.92106,2601.9,2601.8,0.3428]
[1723861978435,5.12886,2601.9,2601.6,1.73576507]
[1723861978638,5.12889,2601.9,2601.6,2.29125]
[1723861978832,5.12889,2601.9,2601.7,0.726]
[1723861979441,5.1289,2601.9,2601.7,0.726]
[1723861980036,1.9211,2601.9,2601.7,0.726]
[1723861980442,1.9211,2601.9,2601.7,1.73256507]
[1723861980736,1.9211,2601.9,2601.7,0.726]
[1723861982138,1.92114,2601.8,2601.7,0.726]
[1723861984648,5.1289,2601.9,2601.7,0.726]
[1723861987548,5.1289,2601.9,2601.7,1.73256507]
[1723861987745,3.2078,2601.9,2601.7,1.73256507]
[1723861987949,5.12893,2601.9,2601.7,1.833]
[1723861988536,5.12893,2601.9,2601.7,2.83956507]
[1723861989443,5.12893,2601.9,2601.8,1.00656507]
[1723861991849,1.92113,2601.9,2601.8,1.00656507]
[1723861994048,5.12893,2601.9,2601.8,1.00656507]
[1723861995452,6.23593,2601.9,2601.8,1.00656507]
[1723861995647,1.92114,2601.8,2601.7,1.00656507]
[1723861995846,2.28674,2601.8,2601.7,1.00656507]
[1723861996546,2.28674,2601.8,2601.7,2.92821342]
[1723861996749,3.39374,2601.8,2601.6,1.00656507]
[1723861996953,3.39374,2601.8,2601.5,1.00656507]
[1723861996954,1.92128,2601.6,2601.5,1.00656507]
[1723861997154,1.92128,2601.6,2601.4,1.00656507]
[1723861997155,1.92136,2601.5,2601.4,1.00656507]
[1723861997456,2.28476,2601.5,2601.4,1.00656507]
[1723861998153,1.92143,2601.4,2601.3,1.00656507]
[1723861998456,2.26763,2601.4,2601.3,2.92846893]
[1723861998675,2.26763,2601.4,2601.3,2.92841363]
[1723861998849,2.26763,2601.4,2601.3,1.92184856]
[1723861999247,2.26763,2601.4,2601.3,2.29874856]
[1723861999461,2.26763,2601.4,2601.3,3.3059429]
[1723862000562,2.26763,2601.4,2601.3,1.38409434]
[1723862001147,2.26763,2601.4,2601.3,3.30595391]
[1723862001656,2.26763,2601.4,2601.3,1.38409434]
[1723862003459,2.26763,2601.4,2601.3,0.3769]
[1723862004661,1.92158,2601.2,2600.9,1.01150313]
[1723862004855,6.23653,2601.0,2600.9,0.00430879]
[1723862005957,8.15826,2601.0,2600.9,0.00430879]
[1723862006263,6.23653,2601.0,2600.9,0.00430879]
[1723862010455,3.2078,2601.0,2600.9,1.11130879]
[1723862011461,0.3573,2601.1,2600.9,1.45780879]
[1723862011664,0.3573,2601.1,2601.0,0.3677]
[1723862011860,2.27898,2601.1,2601.0,0.3677]
[1723862013355,3.2078,2601.3,2601.0,1.4747]
[1723862013557,1.92158,2601.2,2601.0,0.3677]
[1723862014066,1.92165,2601.1,2601.0,0.3677]
[1723862014755,1.92161,2601.2,2601.0,0.3677]
[1723862015656,6.03443,2601.5,2601.0,5.3195]
[1723862015967,7.5034,2601.5,2601.0,1.4747]
[1723862016167,7.5034,2601.5,2601.2,1.107]
[1723862016363,7.5034,2601.5,2601.3,0.3646]
[1723862016665,7.5034,2601.5,2601.3,0.7239]
[1723862017059,7.50339,2601.5,2601.3,0.7239]
[1723862017256,6.39639,2601.5,2601.3,0.7239]
[1723862017457,7.50339,2601.5,2601.3,0.7239]
[1723862018564,1.92143,2601.4,2601.3,0.7239]
[1723862020263,3.3904,2601.5,2601.3,0.7239]
[1723862020467,1.469,2601.5,2601.3,0.7239]
[1723862020673,5.12923,2601.4,2601.3,0.7239]
[1723862024472,6.23623,2601.4,2601.3,0.7239]
[1723862024669,3.02843,2601.4,2601.3,0.7239]
[1723862024868,6.23623,2601.4,2601.3,0.7239]
[1723862025571,1.92165,2601.1,2601.0,0.3677]
[1723862025767,6.2365,2601.1,2600.9,0.00430879]
[1723862026362,4.3148,2601.1,2600.9,0.00430879]
[1723862026572,1.92173,2601.0,2600.9,0.00430879]
[1723862028676,3.40163,2601.0,2600.9,0.00430879]
[1723862029369,2.29463,2601.0,2600.9,0.00430879]
[1723862032779,3.40163,2601.0,2600.9,0.00430879]
[1723862032974,5.32336,2601.0,2600.9,0.00430879]
[1723862037281,9.16816,2601.0,2600.9,0.00430879]
[1723862041071,12.37596,2601.0,2600.9,0.00430879]
[1723862041470,1.92195,2600.7,2600.6,0.00577256]
[1723862041674,6.23675,2600.7,2600.6,0.00577256]
[1723862041876,10.81665,2600.7,2600.6,0.00577256]
[1723862042074,12.7386,2600.7,2600.6,0.00577256]
[1723862042578,12.7386,2600.7,2600.6,0.00951166]
[1723862051782,8.8938,2600.7,2600.6,0.00951166]
[1723862051988,12.7386,2600.7,2600.6,0.00951166]
[1723862058203,1.92224,2600.3,2600.0,0.348]
[1723862058499,3.02939,2600.1,2600.0,0.348]
[1723862059200,3.03220233,2600.1,2600.0,0.35267506]
[1723862060207,4.95459233,2600.1,2600.0,0.35267506]
[1723862063193,1.92520233,2600.1,2600.0,0.35267506]
[1723862063393,3.03220233,2600.1,2600.0,0.35267506]
[1723862066007,4.95459233,2600.1,2600.0,0.35267506]
[1723862066197,4.95459233,2600.1,2600.0,0.00467506]
[1723862066400,3.03220233,2600.1,2600.0,0.00467506]
[1723862067105,3.03220233,2600.1,2600.0,0.38217506]
[1723862067305,1.92520233,2600.1,2600.0,0.38217506]
[1723862067511,3.03220233,2600.1,2600.0,0.38217506]
[1723862070505,4.95459233,2600.1,2600.0,0.38217506]
[1723862075516,4.95459233,2600.1,2600.0,0.00467506]
[1723862076008,8.80099233,2600.1,2600.0,0.00467506]
[1723862077516,13.80099233,2600.1,2600.0,0.00467506]
[1723862078607,8.80099233,2600.1,2600.0,0.00467506]
[1723862079611,9.14359233,2600.1,2600.0,0.00467506]
[1723862080313,8.03659233,2600.1,2600.0,0.00467506]
[1723862080519,5.29719233,2600.1,2600.0,0.00467506]
[1723862081610,2.26780233,2600.1,2600.0,0.00467506]
[1723862081811,3.03220233,2600.1,2600.0,0.00467506]
[1723862084811,1.92520233,2600.1,2600.0,0.00467506]
[1723862085110,3.03220233,2600.1,2600.0,0.00467506]
[1723862087120,1.10981233,2600.1,2600.0,0.00467506]
[1723862087320,1.10981233,2600.1,2600.0,0.34787506]
[1723862087620,1.10981233,2600.1,2600.0,4.19427506]
[1723862088022,1.10981233,2600.1,2600.0,4.54697506]
[1723862088614,1.10981233,2600.1,2600.0,0.70057506]
[1723862090409,1.10981233,2600.1,2600.0,2.62304506]
[1723862091018,1.10981233,2600.1,2600.0,0.70057506]
[1723862091226,1.10981233,2600.1,2600.0,6.46944506]
[1723862093921,1.10981233,2600.1,2600.0,4.54697506]
[1723862095417,1.10981233,2600.1,2600.0,6.46944506]
[1723862096920,0.00281233,2600.1,2600.0,12.57644506]
[1723862097218,5.22,2600.7,2600.0,20.52178428]
[1723862097525,5.22,2600.7,2600.4,4.03588878]
[1723862097725,5.22,2600.7,2600.5,1.0701]
[1723862097924,7.14195,2600.7,2600.5,1.0701]
[1723862098122,7.14508151,2600.7,2600.5,1.0701]
[1723862098626,5.22313151,2600.7,2600.5,1.0701]
[1723862098921,5.22313151,2600.7,2600.5,2.99218]
[1723862098922,1.11013151,2600.7,2600.5,2.99218]
[1723862099231,1.11013151,2600.7,2600.6,3.8456]
[1723862099418,0.00313151,2600.7,2600.6,3.8456]
[1723862100315,3.21357256,2600.9,2600.6,9.9526]
[1723862100516,3.21357256,2600.9,2600.8,1.92187]
[1723862100720,3.21357256,2600.9,2600.8,7.88040878]
[1723862100929,3.21357256,2600.9,2600.8,12.88040878]
[1723862101420,3.21683999,2600.9,2600.8,12.88040878]
[1723862101624,3.21683999,2600.9,2600.8,10.95853878]
[1723862101822,3.21683999,2600.9,2600.8,3.8448]
[1723862102826,3.21683999,2600.9,2600.5,11.77463878]
[1723862102827,3.21683999,2600.9,2600.5,10.66763878]
[1723862103131,3.21683999,2600.9,2600.5,9.6609]
[1723862103132,3.02898,2600.7,2600.5,9.6609]
[1723862103425,3.02898,2600.7,2600.5,6.4531]
[1723862103426,1.92202,2600.6,2600.5,6.4531]
[1723862103927,1.92202,2600.6,2600.2,1.00673878]
[1723862103928,5.48742,2600.6,2600.2,1.00673878]
[1723862104127,1.92224,2600.3,2600.2,0.3627]
[1723862104318,1.92239,2600.1,2600.0,0.00467506]
[1723862104521,1.92239,2600.1,2600.0,0.36737506]
[1723862105526,1.92239,2600.1,2600.0,0.00467506]
[1723862108829,5.76879,2600.1,2600.0,0.00467506]
[1723862109021,7.69118,2600.1,2600.0,0.00467506]
[1723862110029,1.92239,2600.1,2600.0,0.00467506]
[1723862110229,0.3576,2600.2,2600.0,0.00467506]
[1723862110429,1.92239,2600.1,2600.0,0.00467506]
[1723862111830,5.76879,2600.1,2600.0,0.00467506]
[1723862114420,1.92239,2600.1,2600.0,0.00467506]
[1723862119541,2.27996,2600.2,2600.0,0.00467506]
[1723862119738,1.92239,2600.1,2600.0,0.00467506]
[1723862125940,3.84508,2599.9,2599.8,0.00577256]
[1723862126246,9.71088,2599.9,2599.8,0.00450379]
[1723862126437,13.55728,2599.9,2599.8,0.00450379]
[1723862126929,13.90008,2599.9,2599.8,0.00848208]
[1723862127937,10.42754,2599.9,2599.8,0.00848208]
[1723862128136,1.108,2599.9,2599.8,3.85488208]
[1723862128345,1.108,2599.9,2599.8,0.00848208]
[1723862131547,1.92251,2600.0,2599.8,0.00848208]
[1723862131548,1.108,2600.0,2599.8,0.00848208]
[1723862131748,3.03049,2600.0,2599.8,0.00848208]
[1723862132646,1.108,2600.0,2599.8,0.00848208]
[1723862132846,3.03047,2600.0,2599.8,0.00848208]
[1723862135349,1.92247,2600.0,2599.8,0.00848208]
[1723862135743,1.108,2599.9,2599.8,0.00848208]
[1723862135939,3.03054,2599.9,2599.8,0.00848208]
[1723862136138,6.23834,2599.9,2599.8,0.00848208]
[1723862137345,12.00728,2599.9,2599.8,0.00848208]
[1723862139948,6.23834,2599.9,2599.8,0.00848208]
[1723862140446,12.00728,2599.9,2599.8,0.00848208]
[1723862143840,5.13034,2599.9,2599.8,0.00848208]
[1723862144045,6.23834,2599.9,2599.8,0.00848208]
[1723862145560,10.08474,2599.9,2599.8,0.00848208]
[1723862145852,6.23834,2599.9,2599.8,0.00848208]
[1723862146056,10.08474,2599.9,2599.8,0.00848208]
[1723862146951,12.00728,2599.9,2599.8,0.00848208]
[1723862155664,8.97674,2599.9,2599.8,0.00848208]
[1723862155859,3.03049,2600.0,2599.8,3.85488208]
[1723862156060,1.92242,2600.1,2599.9,1.08]
[1723862156268,1.108,2600.0,2599.9,1.08]
[1723862156762,1.92242,2600.1,2599.9,1.08]
[1723862156962,1.108,2600.0,2599.9,1.08]
[1723862157562,3.2078,2600.2,2599.9,1.08]
[1723862157765,1.108,2600.1,2599.9,1.08]
[1723862158367,1.108,2600.0,2599.9,1.08]
[1723862159866,5.13012,2600.2,2599.9,1.08]
[1723862160063,3.2078,2600.2,2599.9,1.08]
[1723862160370,5.13015,2600.2,2599.9,1.08]
[1723862160559,1.92239,2600.1,2599.9,1.08]
[1723862160956,5.13015,2600.2,2599.9,1.08]
[1723862161765,3.2078,2600.2,2599.9,0.3501]
[1723862161973,1.92246,2600.0,2599.9,0.3501]
[1723862164661,2.28756,2600.0,2599.9,0.3501]
[1723862165562,1.92254,2599.9,2599.8,0.00848208]
[1723862165767,5.13034,2599.9,2599.8,0.00848208]
[1723862169669,1.92254,2599.9,2599.8,0.00848208]
[1723862170267,5.13034,2599.9,2599.8,0.00848208]
[1723862172469,10.89928,2599.9,2599.8,0.00848208]
[1723862175774,7.69148,2599.9,2599.8,0.00848208]
[1723862176071,10.89928,2599.9,2599.8,0.00848208]
[1723862179067,5.13034,2599.9,2599.8,0.00848208]
[1723862179279,8.97674,2599.9,2599.8,0.00848208]
[1723862179972,10.08474,2599.9,2599.8,0.00848208]
[1723862180366,6.23834,2599.9,2599.8,0.00848208]
[1723862182164,3.2078,2599.9,2599.8,0.00848208]
[1723862182368,6.23834,2599.9,2599.8,0.00848208]
[1723862183779,4.3158,2599.9,2599.8,0.00848208]
[1723862184476,6.23834,2599.9,2599.8,0.00848208]
[1723862186783,4.3158,2599.9,2599.8,0.00848208]
[1723862186978,6.23834,2599.9,2599.8,0.00848208]
[1723862189379,4.3158,2599.9,2599.8,0.00848208]
[1723862189580,3.2078,2599.9,2599.8,0.00848208]
[1723862189780,4.3158,2599.9,2599.8,0.00848208]
[1723862190373,5.13014,2600.2,2599.8,3.85488208]
[1723862190576,1.108,2600.0,2599.9,0.3652]
[1723862190986,1.108,2600.0,2599.9,4.2116]
[1723862192086,1.108,2600.0,2599.9,4.5673]
[1723862196392,1.108,2600.0,2599.9,5.57403878]
[1723862196595,1.108,2600.0,2599.9,4.5673]
[1723862199900,3.2078,2600.4,2600.1,1.92234]
[1723862200391,3.2078,2600.4,2600.2,0.3749]
[1723862200594,3.2078,2600.4,2600.3,0.7115]
[1723862201005,5.12997,2600.4,2600.3,4.5571]
[1723862201207,1.92239,2600.2,2599.9,1.00670126]
[1723862201407,1.92239,2600.2,2600.1,0.3627]
[1723862201602,1.92239,2600.2,2600.1,4.2083]
[1723862202802,3.03039,2600.2,2600.1,4.2083]
[1723862204415,3.03039,2600.2,2600.1,0.3627]
[1723862205009,6.23819,2600.2,2600.1,0.3627]
[1723862205809,6.23819,2600.2,2600.1,4.2083]
[1723862206008,6.23819,2600.2,2600.1,0.3627]
[1723862207108,6.23819,2600.2,2600.1,4.2083]
[1723862210609,3.03039,2600.2,2600.1,4.2083]
[1723862211404,3.03039,2600.2,2600.1,0.3627]
[1723862213407,1.108,2600.2,2600.1,4.2083]
[1723862214613,3.03032,2600.2,2600.1,4.2083]
[1723862216310,1.108,2600.2,2600.1,4.2083]
[1723862218212,6.60327,2600.3,2600.1,6.13069]
[1723862218516,4.3158,2600.3,2600.1,6.13069]
[1723862218915,4.3158,2600.3,2600.1,6.13065]
[1723862219320,4.3158,2600.3,2600.2,3.8456]
[1723862219516,6.23804,2600.3,2600.2,3.8456]
[1723862220818,4.3158,2600.3,2600.2,5.76792]
[1723862221019,3.2078,2600.3,2600.2,5.76792]
[1723862221216,1.108,2600.4,2600.3,1.92224]
[1723862221415,1.108,2600.4,2600.3,5.76784]
[1723862221614,1.108,2600.6,2600.3,8.8456]
[1723862221817,3.5543,2600.7,2600.6,1.92202]
[1723862222116,3.2078,2600.7,2600.6,1.92202]
[1723862222322,0.00903999,2600.9,2600.8,1.92187]
[1723862222524,0.00903999,2600.9,2600.8,6.87467]
[1723862222710,0.00903999,2600.9,2600.8,11.87467]
[1723862222917,0.00903999,2600.9,2600.8,13.60977126]
[1723862223116,0.00903999,2600.9,2600.8,12.60307]
[1723862223312,0.00903999,2600.9,2600.8,7.60307]
[1723862223516,1.92198,2600.7,2600.5,1.00670126]
[1723862223716,1.92198,2600.7,2600.4,2.63526]
[1723862223717,0.3465,2600.6,2600.4,2.63526]
[1723862223927,3.5543,2600.6,2600.4,2.63526]
[1723862224230,3.5543,2600.6,2600.5,5.76769]
[1723862224528,3.5543,2600.6,2600.5,3.8456]
[1723862224832,3.2078,2600.6,2600.5,5.76769]
[1723862226323,3.39839,2600.8,2600.5,5.76769]
[1723862226622,3.39839,2600.8,2600.4,3.74322]
[1723862227632,3.74049,2600.8,2600.4,3.74322]
[1723862229117,6.94829,2600.8,2600.4,3.74322]
[1723862229732,5.0264,2600.8,2600.4,3.74322]
[1723862229925,3.5763,2600.8,2600.6,1.92199]
[1723862230229,3.5763,2600.8,2600.5,1.92206]
[1723862230822,3.5763,2600.8,2600.6,0.378]
[1723862231025,3.5763,2600.8,2600.6,2.29999]
[1723862231222,3.5763,2600.8,2600.6,6.14479]
[1723862231632,3.5763,2600.8,2600.6,4.2228]
[1723862234625,3.5763,2600.8,2600.6,6.14481]
[1723862235829,3.5763,2600.8,2600.6,7.25281]
[1723862237430,3.5763,2600.8,2600.6,5.3308]
[1723862238323,3.5763,2600.8,2600.7,1.92195]
[1723862238526,0.00903999,2600.9,2600.8,1.92187]
[1723862238722,0.00903999,2600.9,2600.8,2.66097]
[1723862238930,0.00903999,2600.9,2600.8,6.50577]
[1723862240634,0.00903999,2600.9,2600.8,7.61377]
[1723862242332,0.00903999,2600.9,2600.8,17.00294975]
[1723862243636,0.00903999,2600.9,2600.8,10.89494975]
[1723862244237,1.92196,2600.7,2600.5,1.00670126]
[1723862244435,0.3693,2600.6,2600.5,0.3654]
[1723862244632,0.3693,2600.6,2600.5,4.211]
[1723862244836,2.29132,2600.6,2600.5,8.21942333]
[1723862245138,0.3693,2600.6,2600.3,5.383]
[1723862245339,1.92217,2600.4,2600.3,5.383]
[1723862245836,3.03017,2600.4,2600.3,5.383]
[1723862246227,1.92228,2600.3,2600.1,0.7352]
[1723862246429,0.3438,2600.3,2600.1,2.28777]
[1723862246635,1.108,2600.2,2600.1,0.3654]
[1723862246932,1.92254,2599.9,2599.8,1.01518334]
[1723862247233,1.92254,2599.9,2599.8,0.00848208]
[1723862247234,6.23834,2599.9,2599.8,0.00848208]
[1723862249239,4.3158,2599.9,2599.8,0.00848208]
[1723862249635,6.23834,2599.9,2599.8,0.00848208]
[1723862252937,10.08474,2599.9,2599.8,0.00848208]
[1723862253737,10.44234,2599.9,2599.8,0.00848208]
[1723862257934,6.59594,2599.9,2599.8,0.00848208]
[1723862258134,10.44234,2599.9,2599.8,0.00848208]
[1723862258336,6.59594,2599.9,2599.8,0.00848208]
[1723862261147,4.6734,2599.9,2599.8,0.00848208]
[1723862261737,6.59594,2599.9,2599.8,0.00848208]
[1723862261937,5.48794,2599.9,2599.8,0.00848208]
[1723862262934,3.5654,2599.9,2599.8,0.00848208]
[1723862272151,16.25688,2599.9,2599.8,0.00848208]
[1723862273057,11.25688,2599.9,2599.8,0.00848208]
[1723862273252,16.25688,2599.9,2599.8,0.00848208]
[1723862274350,11.25688,2599.9,2599.8,0.00848208]
[1723862275355,16.25688,2599.9,2599.8,0.00848208]
[1723862275756,11.25688,2599.9,2599.8,0.00848208]
[1723862275956,16.25688,2599.9,2599.8,0.00848208]
[1723862282468,16.63598,2599.9,2599.8,0.00848208]
[1723862291386,11.63598,2599.9,2599.8,0.00848208]
[1723862291691,16.63598,2599.9,2599.8,0.00848208]
[1723862293883,8.42818,2599.9,2599.8,0.00848208]
[1723862294186,16.63598,2599.9,2599.8,0.00848208]
[1723862294486,11.63598,2599.9,2599.8,0.00848208]
[1723862295687,11.25688,2599.9,2599.8,0.00848208]
[1723862295887,12.36488,2599.9,2599.8,0.00848208]
[1723862296994,9.15708,2599.9,2599.8,0.00848208]
[1723862297182,12.36488,2599.9,2599.8,0.00848208]
[1723862310596,10.44234,2599.9,2599.8,0.00848208]
[1723862312002,12.36488,2599.9,2599.8,0.00848208]
[1723862313201,8.51848,2599.9,2599.8,0.00848208]
[1723862313406,12.36488,2599.9,2599.8,0.00848208]
[1723862313999,3.2078,2599.9,2599.8,0.00848208]
[1723862314203,4.3158,2599.9,2599.8,0.00848208]
[1723862314401,6.23834,2599.9,2599.8,0.00848208]
[1723862315803,6.58804,2599.9,2599.8,0.00848208]
[1723862318113,8.51058,2599.9,2599.8,0.00848208]
[1723862319202,14.27952,2599.9,2599.8,0.00848208]
[1723862319403,23.29058502,2599.9,2599.8,0.00848208]
[1723862320099,18.29058502,2599.9,2599.8,0.00848208]
[1723862320704,23.29058502,2599.9,2599.8,0.00848208]
[1723862321205,18.29058502,2599.9,2599.8,0.00848208]
[1723862321597,23.29058502,2599.9,2599.8,0.00848208]
[1723862322605,1.92298,2599.3,2599.2,0.3625]
[1723862322809,1.92306,2599.2,2599.1,0.3724]
[1723862323006,3.40226,2599.2,2599.1,0.3724]
[1723862323605,3.40226,2599.2,2599.1,0.37628593]
[1723862325210,1.108,2599.2,2599.1,0.37628593]
[1723862325813,3.03106,2599.2,2599.1,0.37628593]
[1723862328512,6.23886,2599.2,2599.1,0.37628593]
[1723862331701,4.3158,2599.2,2599.1,0.37628593]
[1723862332717,3.2078,2599.2,2599.1,0.37628593]
[1723862332904,4.3158,2599.2,2599.1,0.37628593]
[1723862333301,3.2078,2599.2,2599.1,4.22348593]
[1723862333507,3.2078,2599.2,2599.1,0.37628593]
[1723862333917,3.5536,2599.2,2599.1,0.37628593]
[1723862335917,5.13085,2599.2,2599.1,0.37628593]
[1723862336118,5.47665,2599.2,2599.1,0.37628593]
[1723862336525,2.26885,2599.2,2599.1,0.37628593]
[1723862336815,5.47665,2599.2,2599.1,0.37628593]
[1723862339619,6.58465,2599.2,2599.1,0.37628593]
[1723862340415,5.47665,2599.2,2599.1,0.37628593]
[1723862340715,6.58465,2599.2,2599.1,0.37628593]
[1723862340916,3.2078,2599.2,2599.1,0.37628593]
[1723862341118,4.3158,2599.2,2599.1,0.37628593]
[1723862343618,4.3158,2599.2,2599.1,4.22348593]
[1723862354227,1.108,2599.2,2599.1,4.22348593]
[1723862354625,4.3158,2599.2,2599.1,4.22348593]
[1723862355230,1.108,2599.2,2599.1,4.22348593]
[1723862355425,4.3158,2599.2,2599.1,4.22348593]
[1723862359437,4.3158,2599.2,2599.1,0.37628593]
[1723862359732,3.2078,2599.2,2599.1,4.22348593]
[1723862360035,4.3158,2599.2,2599.1,4.22348593]
[1723862360729,4.3158,2599.2,2599.1,5.23018719]
[1723862361330,4.3158,2599.2,2599.1,10.23018719]
[1723862361534,4.3158,2599.2,2599.1,12.15364036]
[1723862361738,4.3158,2599.2,2599.1,10.23018719]
[1723862361929,0.00577256,2599.4,2599.3,1.92298]
[1723862362237,0.00577256,2599.4,2599.3,7.88602935]
[1723862362437,0.00577256,2599.4,2599.3,12.88602935]
[1723862362831,0.00577256,2599.4,2599.3,14.80928925]
[1723862363135,0.00577256,2599.4,2599.3,12.88630925]
[1723862363636,0.00577256,2599.4,2599.3,10.96304935]
[1723862364345,0.00577256,2599.4,2599.3,4.85504935]
[1723862364532,0.00577256,2599.4,2599.3,3.8472]
[1723862364835,0.00577256,2599.4,2599.3,4.85504935]
[1723862365240,0.00577256,2599.4,2599.3,9.85504935]
[1723862365432,0.00577256,2599.4,2599.3,4.85504935]
[1723862365837,0.00577256,2599.4,2599.3,8.8472]
[1723862366029,0.00577256,2599.4,2599.3,3.8472]
[1723862367042,0.00577256,2599.4,2599.3,4.85504935]
[1723862367241,0.00577256,2599.4,2599.3,3.8472]
[1723862367935,0.00577256,2599.4,2599.3,8.8472]
[1723862368239,0.00577256,2599.4,2599.3,3.8472]
[1723862368834,0.00577256,2599.4,2599.3,8.8472]
[1723862369032,0.00577256,2599.4,2599.3,3.8472]
[1723862371842,0.00577256,2599.4,2599.3,8.8472]
[1723862373445,0.00577256,2599.4,2599.3,3.8472]
[1723862373641,0.00577256,2599.4,2599.3,8.8472]
[1723862373850,0.00577256,2599.4,2599.3,3.8472]
[1723862374046,0.00577256,2599.4,2599.3,8.8472]
[1723862374443,0.00577256,2599.4,2599.3,3.8472]
[1723862375747,0.00577256,2599.4,2599.3,8.8472]
[1723862376750,0.00577256,2599.4,2599.3,9.9552]
[1723862377152,0.00577256,2599.4,2599.3,4.9552]
[1723862388650,1.92868256,2599.4,2599.3,3.8472]
[1723862388956,1.92868256,2599.4,2599.1,0.37628593]
[1723862388957,1.92306,2599.2,2599.1,0.37628593]